Cogmind - Beta 15 @@@ ROGUE MODE // 2025.06.22 @ 21:43:09 Player: dorusv Result: Destroyed by D-53 Grenadier with Mini Grenade Launcher Performance ------------- Evolutions (0) 0 Regions Visited (2) 400 Robots Destroyed (12) 60 Value Destroyed (117) 117 Prototype IDs (0) 0 Alien Tech Used (0) 0 Bonus (-16) -16 TOTAL SCORE: 561 Bonus ------- Friendly Fire -16 Cogmind --------- Core Integrity 0/250 Matter 196/300 Energy 84/100 System Corruption 2% Temperature Cool (0) Movement Core (150) Ox2 Location -10/Mines Parts ------- > --- POWER (1) -------- (None) > --- PROPULSION (2) --- (None) > --- UTILITY (2) ------ Small Storage Unit > --- WEAPON (2) ------- Assault Rifle Light Assault Rifle > --- INVENTORY (8) ---- Light Ion Engine Aluminum Leg Wheel Wheel Compact Wheel Peak State ------------ > --- POWER ------------ Ion Engine > --- PROPULSION ------- Aluminum Leg Aluminum Leg > --- UTILITY ---------- Small Storage Unit Improved Terrain Scanner > --- WEAPON ----------- Assault Rifle Assault Rifle > --- INVENTORY -------- Light Ion Engine Wheel Compact Wheel Light Assault Rifle [Rating: 9] Favorites ----------- Power Ion Engine Engine Ion Engine Propulsion Aluminum Leg Leg Aluminum Leg Wheel Wheel Flight Unit Flight Unit Utility Small Storage Unit Device Improved Terrain Scanner Storage Small Storage Unit Weapon Assault Rifle Ballistic Gun Assault Rifle Launcher Grenade Launcher Build | -11 -10 -10 ------- Run | Yrd Mat Min Slots Evolved . | . . . Power . | . . . Propulsion . | . . . Utility . | . . . Weapon . | . . . Parts Attached 14 | 11 2 1 Power 2 | 2 . . Engine 2 | 2 . . Core . | . . . Reactor . | . . . Propulsion 6 | 4 2 . Treads . | . . . Leg 2 | 2 . . Wheel 2 | 2 . . Hover . | . . . Flight 2 | . 2 . Utility 2 | 2 . . Device 1 | 1 . . Storage 1 | 1 . . Processor . | . . . Hackware . | . . . Protection . | . . . Artifact . | . . . Weapon 4 | 3 . 1 Energy Gun . | . . . Energy Cannon . | . . . Ballistic Gun 3 | 3 . . Ballistic Cannon . | . . . Launcher 1 | . . 1 Special Weapon . | . . . Impact Weapon . | . . . Slashing Weapon . | . . . Piercing Weapon . | . . . Special Melee Weapon . | . . . Unidentified Prototypes . | . . . Parts Lost 6 | . . 6 Power 1 | . . 1 Propulsion 2 | . . 2 Utility 1 | . . 1 Weapon 2 | . . 2 Highest Loss Streak 6 | . . 6 To Critical Strikes . | . . . Average Backups 5 | 3 7 7 Power . | . 1 1 Propulsion 3 | 2 3 4 Utility . | . . . Weapon 1 | . 2 2 Tool/Special . | . . . Unused Backups 1 | . . 1 Power . | . . . Propulsion 1 | . . 1 Utility . | . . . Weapon . | . . . Tool/Special . | . . . Average Slot Usage (%) 85 | . 86 81 Engine 13 | . 14 12 Leg 16 | . 21 . Flight 10 | . 6 22 Device 14 | . 14 14 Storage 14 | . 14 14 Ballistic Gun 15 | . 16 14 Launcher 1 | . . 4 Peak Build Rating 9 | 9 9 9 Average Rating 7 | 6 8 7 On Entrance 5 | . 9 8 Naked Turns . | . . . Heaviest Build 15 | 15 15 13 Greatest Support 20 | 20 20 8 Greatest Overweight (x) 3 | . 3 2 Average Overweight (x) . | . . 1 Largest Inventory Capacity 8 | 8 8 8 Average Capacity 7 | 7 8 8 Most Carried 8 | 5 8 8 Average Carried 5 | 3 7 7 Final Capacity 8 | 8 8 8 Final Carried 8 | 5 8 5 Class Distribution -------------------- 100% | Mutant Dominant Class ---------------- Mutant | -10/Materials Mutant | -10/Mines Resources | -11 -10 -10 ----------- Run | Yrd Mat Min Matter Collected 451 | 379 72 . Remotely . | . . . Salvage Created 456 | 192 180 84 Parts 24 | 10 11 3 Haulers Intercepted . | . . . Recyclers Shooed 4 | . 3 1 Parts Field Recycled . | . . . Retrieved Matter . | . . . Parts Self-Destructed . | . . . Prevented . | . . . Kills | -11 -10 -10 ------- Run | Yrd Mat Min Combat Hostiles Destroyed 17 | . 1 16 Guns 1 | . 1 . AOE 16 | . . 16 Classes Destroyed 7 | 3 2 2 Worker 2 | 2 . . Tunneler 3 | 3 . . Recycler 3 | 1 2 . Watcher 2 | . 2 . Swarmer 1 | . 1 . Grunt 1 | . . 1 Assembled 15 | . . 15 Best Kill Streak 16 | 3 4 16 Combat Bots Only 16 | . 1 16 Max Kills in Single Turn 5 | 1 1 5 Gunslinging . | . . . Exploded 5 | . . 5 Melee . | . . . Uniques/NPCs Destroyed . | . . . Combat | -11 -10 -10 -------- Run | Yrd Mat Min Hostile Shots Fired 35 | . 9 26 Missed 10 | . 4 6 Hits 25 | . 5 20 Melee 1 | . . 1 Projectile 24 | . 5 19 AOE 9 | . . 9 Part Disruptions 1 | . . 1 Damage Taken 688 | . 37 651 Core 254 | . 8 246 Absorbed by Shields . | . . . Core Remaining (%) 100 | 100 . . Volleys Fired 43 | 15 17 11 Largest 2 | 2 1 2 Hottest 40 | 40 20 40 Shots Fired 59 | 30 17 12 Gun 49 | 30 17 2 Cannon . | . . . Launcher 10 | . . 10 Special . | . . . Kinetic 49 | 30 17 2 Thermal . | . . . Explosive 10 | . . 10 Electromagnetic . | . . . Robot Hit Streak 6 | 6 6 5 Robot Miss Streak 2 | 2 2 1 Penetration Max . | . . . Secondary Targets . | . . . Shots Hit Robots 38 | 21 12 5 Core Hits 64 | 9 7 48 Critical Kills . | . . . Critical Parts Destroyed . | . . . Critical Strikes . | . . . Melee Attacks . | . . . Impact . | . . . Slashing . | . . . Piercing . | . . . Sneak Attacks . | . . . Combat Hostiles . | . . . Follow-up Attacks . | . . . Damage Inflicted 1527 | 247 161 1119 Guns 428 | 247 161 20 Cannons . | . . . Explosions 1099 | . . 1099 Melee . | . . . Ramming . | . . . Kinetic 428 | 247 161 20 Thermal . | . . . Explosive 1099 | . . 1099 Electromagnetic . | . . . Impact . | . . . Slashing . | . . . Piercing . | . . . Highest Corruption 2 | . . 2 Average Corruption 2 | . . 2 Corruption Purged . | . . . Corruption Blocked . | . . . Overload Shots . | . . . Overflow Damage . | . . . Projectiles . | . . . Explosions . | . . . Melee . | . . . Knockbacks . | . . . Impact . | . . . Kinetic . | . . . Secondary . | . . . Self-Inflicted Damage 98 | . . 98 Shots 4 | . . 4 Rammed . | . . . Targets Rammed . | . . . Kicked . | . . . Crushed . | . . . Highest Temperature 17 | . . 17 Average Temperature 8 | . . 8 Received Heat Transfer 40 | . . 40 Siege Activations . | . . . Martial Activations . | . . . Shielding Activations . | . . . Robots Disrupted . | . . . Combat Hostiles . | . . . Robots Corrupted . | . . . Combat Hostiles . | . . . Parts Fried . | . . . Impact Corruptions . | . . . Robots Melted . | . . . Combat Hostiles . | . . . Parts Melted . | . . . Heat Transferred . | . . . Parts Sabotaged . | . . . Parts Stolen . | . . . Parts Stripped . | . . . Power Chain Reactions . | . . . Alert | -11 -10 -10 ------- Run | Yrd Mat Min Maximum Alert Level . | . . . Low Security (%) 100 | 100 100 100 Level 1 . | . . . Level 2 . | . . . Level 3 . | . . . Level 4 . | . . . Level 5 . | . . . High Security . | . . . Max Security . | . . . Peak Influence 65 | 10 65 47 Initial 18 | . . 18 Average 12 | 1 24 16 Influence Increases 190 | 30 96 64 Destroy 0b10 Robot/C 40 | . 20 20 Destroy 0b10 Robot/NC 50 | 30 20 . Destroy Leader 4 | . 4 . Successful Hack 7 | . 7 . Destroy Structure 44 | . . 44 Lose Combat Pursuer 45 | . 45 . Influence Decreases 190 | 30 47 113 Entered New Map 31 | . . 31 Time Decay 107 | 30 47 30 Lost Part 52 | . . 52 Squads Dispatched . | . . . Investigation . | . . . Extermination . | . . . Reinforcement . | . . . Assault . | . . . Garrison . | . . . Intercept . | . . . Searches Triggered . | . . . Construction Impeded . | . . . Haulers Reinforced . | . . . Active Scanning Responses . | . . . Cargo Convoy Interrupts . | . . . Stealth | -11 -10 -10 --------- Run | Yrd Mat Min Distress Signals . | . . . Communications Jammed . | . . . Distress Signals . | . . . Times Spotted 30 | . 6 24 Peak Tracking Total 18 | . 4 18 Tactical Retreats 1 | . 1 . Traps | -11 -10 -10 ------- Run | Yrd Mat Min Traps Triggered . | . . . Indirectly . | . . . Trap Hack Attempts . | . . . Triggered . | . . . Disarmed . | . . . Reprogrammed . | . . . Reused . | . . . Traps Extracted . | . . . Installed . | . . . Triggered . | . . . Machines | -11 -10 -10 ---------- Run | Yrd Mat Min Machines Disabled . | . . . Max in Single Turn . | . . . Machines Repaired . | . . . Machines Dismantled . | . . . Machines Sabotaged . | . . . Overloaded Fab Kills . | . . . Hacking | -11 -10 -10 --------- Run | Yrd Mat Min Machines Accessed 1 | . 1 . Terminals 1 | . 1 . Fabricators . | . . . Repair Stations . | . . . Recycling Units . | . . . Scanalyzers . | . . . Garrison Access . | . . . Total Hacks 3 | . 3 . Successful 1 | . 1 . Failed 2 | . 2 . Catastrophic . | . . . Database Lockouts . | . . . Manual . | . . . Terminals 3 | . 3 . Fabricators . | . . . Repair Stations . | . . . Recycling Units . | . . . Scanalyzers . | . . . Garrison Access . | . . . Terminal Hacks 1 | . 1 . Branch Access Points 1 | . 1 . Fabricator Hacks . | . . . Repair Station Hacks . | . . . Recycling Unit Hacks . | . . . Scanalyzer . | . . . Garrison Access Hacks . | . . . Unauthorized Hacks . | . . . Terminals . | . . . Fabricators . | . . . Repair Stations . | . . . Recycling Units . | . . . Scanalyzers . | . . . Garrison Access . | . . . Data Cores Recovered . | . . . Used . | . . . Hacking Detections 1 | . 1 . Full Trace Events . | . . . Feedback Events . | . . . Feedback Blocked . | . . . Robot Schematics Acquired . | . . . Robots Built . | . . . Authchips . | . . . Time . | . . . Total Robot Build Rating . | . . . Part Schematics Acquired . | . . . Parts Built . | . . . Authchips . | . . . Time . | . . . Total Part Build Rating . | . . . Parts Repaired . | . . . Time . | . . . Parts Recycled . | . . . Recycled Matter . | . . . Retrieved Matter . | . . . Retrieved Components . | . . . Parts Scanalyzed . | . . . Part Schematics Acquired . | . . . Parts Damaged . | . . . Bothacking | -11 -10 -10 ------------ Run | Yrd Mat Min Used RIF Installer . | . . . Robots Hacked . | . . . Non-combat . | . . . Combat . | . . . Robot Hacks Applied . | . . . Relay Couplers Released . | . . . Fabnet Peak Effective % . | . . . Robots Rewired . | . . . Allies Hacked . | . . . Hacks Repelled . | . . . Allies | -11 -10 -10 -------- Run | Yrd Mat Min Total Allies . | . . . Largest Group . | . . . Highest-Rated Group . | . . . Highest-Rated Ally . | . . . Total Orders . | . . . Ally Attacks . | . . . Total Damage . | . . . Kills . | . . . Allies Corrupted . | . . . Allies Melted . | . . . Intel | -11 -10 -10 ------- Run | Yrd Mat Min Active Infowar (turns) 365 | 108 194 63 Terrain 365 | 108 194 63 Robot Analysis Total . | . . . Derelict Logs Recovered . | . . . Drone Launches . | . . . Drone Recoveries . | . . . Exploration | -11 -10 -10 ------------- Run | Yrd Mat Min Turns Passed 466 | 207 194 65 Spaces Moved 282 | 131 119 32 Core 18 | 15 . 3 Treads . | . . . Legs 198 | 114 84 . Wheels 2 | 2 . . Hover . | . . . Flight 64 | . 35 29 Fastest Speed 50 | 50 117 100 Average Speed 117 | 111 123 118 Slowest Speed 280 | 120 280 150 Overloaded Moves . | . . . Propulsion Burnouts . | . . . Robots Hopped . | . . . Potential Cave-ins . | . . . Cave-ins Triggered . | . . . Exploration Rate (%) 16 | 5 29 16 Regions Visited 2 Branch Regions 1 Pre-discovered Areas . | . . . Known Exits Taken 1 | . 1 . Unknown Exits Taken 1 | 1 . . Scrap Searched . | . . . Spaces Dug . | . . . Terrain Destroyed 51 | . . 51 Melee . | . . . Projectile . | . . . AOE 51 | . . 51 Terrain Rammed . | . . . Walls Destroyed . | . . . Machines Disabled . | . . . Actions | -11 -10 -10 --------- Run | Yrd Mat Min Total 356 | 159 150 47 Wait 10 | . 9 1 Move 280 | 130 118 32 Hop . | . . . Pick Up 2 | 1 1 . Fast Attach 11 | 9 2 . Attach 3 | . . 3 Detach 4 | 2 2 . Swap 2 | 2 . . Drop 1 | . 1 . Fire 43 | 15 17 11 Melee . | . . . Ram . | . . . Kick . | . . . Crush . | . . . Escape Stasis . | . . . Rewire . | . . . Trap . | . . . Miscellaneous . | . . . Route ------- -11/Scrapyard -10/Materials -10/Mines (discovered 1 exit: [*Mat]) History --------- Turn | Location | Event 14 | -11/Scrapyard | Discovered new exit (range 15) 208 | -11/Scrapyard | Entered Materials 300 | -10/Materials | Build established: Mutant 385 | -10/Materials | Discovered new exit (range 12) 390 | -10/Materials | Identified exit to Mines 402 | -10/Materials | Entered Mines 428 | -10/Mines | Assembled infested the area 433 | -10/Mines | Assisted by a Guerilla fighting off Assembled 456 | -10/Mines | Discovered new exit (range 10) 462 | -10/Mines | Core integrity fell below 50% 464 | -10/Mines | Core integrity fell below 20% 467 | -10/Mines | Destroyed by D-53 Grenadier with Mini Grenade Launcher Last Messages --------------- 00454_ D-53 Grenadier unfolds itself. 00454_ Assault Rifle destroyed. 00454_ U-05 Engineer lays Concrete. 00454_ Destroyed Wheel. 00456_ EXIT=FOUND 00456_ Flight Unit destroyed. 00456_ Destroyed Flight Unit. 00457_ as-84824 destroyed. 00457_ Terminal disabled. 00457_ Grenade Launcher destroyed. 00457_ Ion Engine destroyed. 00458_ U-05 Engineer builds a Wall. 00459_ The unstable cave ceiling collapses. 00459_ as-34866 destroyed. 00459_ as-49603 destroyed. 00461_ The unstable cave ceiling collapses. 00462_ U-05 Engineer builds a Wall. 00465_ Imp. Terrain Scanner destroyed. 00465_ U-05 Engineer destroyed. 00467_ The unstable cave ceiling collapses. Map ----- +----------------------------------------------------+ | | | | | | | | | | | | | | | | | | | | | | | | | | | | | ???????????????????????????#?????#??????????????? | | ????????????????????????????#????#??????????????? | | ????????????????????????????????????????????#???? | | ?????????????????#??###????????##???????????##### | | ????????????????????# ######???#?????#??#### | | ??????????????????### #???????#???## | | ???????????????#### #####?????### | | ????????????## # ## ##??### | | ??????????< # #### ## | | ????????? ## ##?# | | ????????? ##??? | | ????????# % @ dd ##???? | | ?????????% % ###????? | | ????????? # *!! % ##??????? | | ?????????? %==%| # ##???????# | | ?????????? =""" #### ##????????? | | ?????????? ###### """ #??## #?????????? | | ??????????? ??????# """ < ???## #???#?????? | | ??????????????????# ????# #????????? | | ??????????????????##?#### ????# #???????? | | ?????????????????#??????? #???## ???????? | | ???????????????#????????? #????### #???#??? | | ?????????????????????#??? ##?????## ??????? | | ????????????????????????? #???????# ??? ???? | | ????????????????????????? #???????? ##????????? | | ????????????????????????? ???????? ??????????? | | ????????????????????????? ?????????????????????? | | ????????????????????????????????????????????????? | | ????????????????????????????????????????????????? | | ????????????????????????????????????????????????? | | ????????????????????????????????????????????????? | | ????????????????????????????????????????????????? | | ????????????????????????????????????????????????? | | ????????????????????????????????????????????????? | | ????????????????????????????????????????????????? | | ????????????????????????????????????????????????? | +----------------------------------------------------+ Best States ------------- Heat Dissipation 25 Energy Generation 10 Energy Capacity 250 Matter Stores 300 Matter Capacity 300 Sight Range 16 Terrain Scan Range 16 Terrain Scan Density 10 Evasion (%) 55 Item Schematics ----------------- None Robot Schematics ------------------ None Fabricated ------------ Nothing Repaired ---------- Nothing Alien Tech Used ----------------- None Achievements -------------- Exterminator Challenges ------------ None Game ------ Seed ElectronActiveShearcannon Manual? 0 Play Time 00:06:07 Cumulative 14.3 hours Start 2025.06.22 @ 21:38:28 End 2025.06.22 @ 21:43:09 Sessions 1 Manual Loads 0 Difficulty Rogue Special Mode None Game No. 48 Rogue 45 Adventurer 3 Explorer 0 Win Type - Total 0 Types 0/0/0/0/0/0/0/0/0/0 Lore% 11 Gallery% 20 Achievement% 19 Wizard Run 0 Options --------- Layout 0 ASCII 0 Keyboard 1 Movement Arrows Keybinds 0 Fullscreen 2 Font 24/Smallcaps Map View 183x50 Zoom Use 0% Tactical HUD 1 Map Filters NONE Filters NONE Steam 1 RUN: ddfd3538-11f9-4795-8de3-511179817524